Cogmind - Beta 16 @@@ ROGUE MODE // 2026.01.04 @ 03:37:28 Player: C4PT41N Result: Destroyed by BF-KA4(R) with Subdweller Beam Cannon Performance ------------- Evolutions (0) 0 Regions Visited (3) 600 Robots Destroyed (17) 85 Value Destroyed (456) 456 Prototype IDs (0) 0 Alien Tech Used (0) 0 Bonus (0) 0 TOTAL SCORE: 1141 Bonus ------- None Cogmind --------- Core Integrity 0/250 Matter 215/300 Energy 199/200 System Corruption 5% Temperature Warm (113) Movement Core (150) Ox2 Location -10/Subcaves Parts ------- > --- POWER (1) -------- Subdweller Power Source > --- PROPULSION (2) --- (None) > --- UTILITY (2) ------ (None) > --- WEAPON (2) ------- Subdweller Machine Gun > --- INVENTORY (5) ---- Ion Engine Large Battery (200) Subdweller Optics Particle Gun Mining Laser Peak State ------------ > --- POWER ------------ Light Ion Engine > --- PROPULSION ------- Wheel Subdweller Monowheel > --- UTILITY ---------- Scrap Shield > --- WEAPON ----------- Particle Gun Subdweller Machine Gun > --- INVENTORY -------- Ion Engine Wheel Beam Cannon Mining Laser [Rating: 12] Favorites ----------- Power Ion Engine Engine Ion Engine Propulsion Wheel Wheel Wheel Utility Hardened Light Armor Plating Device Seismic Detector Storage Small Storage Unit Protection Hardened Light Armor Plating Weapon Beam Cannon Energy Gun Particle Gun Energy Cannon Beam Cannon Ballistic Gun Subdweller Machine Gun Special Weapon Mining Laser Build | -11 -10 -10 -10 ------- Run | Yrd Mat Min Sub Slots Evolved . | . . . . Power . | . . . . Propulsion . | . . . . Utility . | . . . . Weapon . | . . . . Parts Attached 23 | 8 8 . 7 Power 3 | 2 . . 1 Engine 3 | 2 . . 1 Core . | . . . . Reactor . | . . . . Propulsion 8 | 2 3 . 3 Treads . | . . . . Leg . | . . . . Wheel 8 | 2 3 . 3 Hover . | . . . . Flight . | . . . . Utility 5 | 2 2 . 1 Device 1 | 1 . . . Storage 1 | 1 . . . Processor . | . . . . Hackware . | . . . . Protection 3 | . 2 . 1 Artifact . | . . . . Weapon 7 | 2 3 . 2 Energy Gun 2 | 1 1 . . Energy Cannon 1 | . 1 . . Ballistic Gun 2 | 1 . . 1 Ballistic Cannon . | . . . . Launcher . | . . . . Special Weapon 2 | . 1 . 1 Impact Weapon . | . . . . Slashing Weapon . | . . . . Piercing Weapon . | . . . . Special Melee Weapon . | . . . . Unidentified Prototypes . | . . . . Parts Lost 10 | . . 1 9 Power . | . . . . Propulsion 5 | . . . 5 Utility 4 | . . 1 3 Weapon 1 | . . . 1 Highest Loss Streak 4 | . . 1 4 To Critical Strikes 1 | . . . 1 Average Backups 4 | 4 5 4 4 Power 1 | . 1 1 1 Propulsion 1 | 2 2 2 . Utility . | . . . . Weapon 1 | . . 1 1 Tool/Special . | . . . . Unused Backups 8 | 4 2 . 2 Power . | . . . . Propulsion 5 | 4 1 . . Utility 2 | . . . 2 Weapon 1 | . 1 . . Tool/Special . | . . . . Average Slot Usage (%) 93 | . 99 100 86 Engine 14 | . 14 14 14 Wheel 27 | . 28 28 27 Device 4 | . 14 2 . Storage 1 | . 6 . . Protection 16 | . 7 25 15 Energy Gun 10 | . 14 14 7 Energy Cannon 7 | . 8 14 3 Ballistic Gun 5 | . 4 . 10 Special Weapon 3 | . . . 6 Peak Build Rating 12 | 7 9 9 12 Average Rating 8 | 5 7 8 10 On Entrance 6 | . 7 9 9 Avg Prop Armor Cover (%) . | . . . . Naked Turns . | . . . . Heaviest Build 30 | 15 17 17 30 Greatest Support 32 | 32 32 20 30 Greatest Overweight (x) 2 | 2 1 . 2 Average Overweight (x) . | . . . . Largest Inventory Capacity 8 | 8 8 5 5 Average Capacity 5 | 7 6 5 5 Most Carried 8 | 6 8 5 5 Average Carried 4 | 4 5 4 4 Final Capacity 8 | 8 5 5 5 Final Carried 6 | 6 5 4 5 Class Distribution -------------------- 74% | Mutant 25% | Subdweller-Mutant Dominant Class ---------------- Mutant | -10/Materials Mutant | -10/Mines Subdweller-Mutant | -10/Subcaves Resources | -11 -10 -10 -10 ----------- Run | Yrd Mat Min Sub Matter Collected 599 | 301 37 94 167 Remotely . | . . . . Salvage Created 684 | 132 37 346 169 Parts 37 | 5 2 17 13 Haulers Intercepted . | . . . . Recyclers Shooed . | . . . . Parts Field Recycled . | . . . . Retrieved Matter . | . . . . Parts Self-Destructed 5 | . . . 5 Prevented . | . . . . Parts Restored . | . . . . Kills | -11 -10 -10 -10 ------- Run | Yrd Mat Min Sub Combat Hostiles Destroyed 12 | . . 7 5 Guns 7 | . . 2 5 Cannons 5 | . . 5 . Classes Destroyed 7 | 3 1 2 1 Worker 1 | 1 . . . Tunneler 1 | 1 . . . Recycler 2 | 1 . 1 . Watcher 2 | . 2 . . Grunt 6 | . . 6 . Subdweller 5 | . . . 5 Assembled 1 | . . 1 . Best Kill Streak 6 | 2 2 6 1 Combat Bots Only 5 | . . 5 1 Max Kills in Single Turn 1 | 1 1 1 1 Gunslinging . | . . . . Exploded . | . . . . Melee . | . . . . Uniques/NPCs Destroyed . | . . . . Combat | -11 -10 -10 -10 -------- Run | Yrd Mat Min Sub Hostile Shots Fired 93 | . . 23 70 Missed 19 | . . 5 14 Hits 74 | . . 18 56 Melee 1 | . . 1 . Projectile 73 | . . 17 56 Critical Strikes 3 | . . . 3 Damage Taken 1504 | . . 207 1297 Core 261 | . . 12 249 Absorbed by Shields . | . . . . Redirected to Shielding 34 | . . 9 25 Core Remaining (%) 100 | 100 . . . Volleys Fired 112 | 7 12 20 73 Largest 2 | 2 2 2 2 Hottest 125 | 70 70 125 125 Shots Fired 164 | 14 15 39 96 Gun 96 | 14 6 20 56 Cannon 28 | . . 19 9 Launcher . | . . . . Special 40 | . 9 . 31 Kinetic 35 | 7 3 . 25 Thermal 129 | 7 12 39 71 Explosive . | . . . . Electromagnetic . | . . . . Robot Hit Streak 13 | 5 4 3 13 Robot Miss Streak 2 | 1 2 2 2 Penetration Max . | . . . . Secondary Targets . | . . . . Shots Hit Robots 80 | 9 3 22 46 Core Hits 28 | 4 2 11 11 Critical Kills . | . . . . Critical Parts Destroyed . | . . . . Critical Strikes . | . . . . Melee Attacks . | . . . . Impact . | . . . . Slashing . | . . . . Piercing . | . . . . Sneak Attacks . | . . . . Combat Hostiles . | . . . . Follow-up Attacks . | . . . . Damage Inflicted 1316 | 110 41 381 784 Guns 1014 | 110 41 167 696 Cannons 302 | . . 214 88 Explosions . | . . . . Melee . | . . . . Ramming . | . . . . Kinetic 405 | 35 29 . 341 Thermal 911 | 75 12 381 443 Explosive . | . . . . Electromagnetic . | . . . . Impact . | . . . . Slashing . | . . . . Piercing . | . . . . Highest Corruption 5 | . . 5 5 Average Corruption 5 | . . 5 5 Corruption Purged . | . . . . Corruption Blocked . | . . . . Effects 42 | . . 16 26 Message Errors 11 | . . 5 6 Matter Fused 13 | . . 4 9 Heat Flow Errors 3 | . . 1 2 Energy Discharges 6 | . . 3 3 Parts Fused 1 | . . . 1 Data Loss (minor) 4 | . . 1 3 Misfires 2 | . . . 2 Alerts 1 | . . 1 . Weapon Failures 1 | . . 1 . Overload Shots . | . . . . Overflow Damage . | . . . . Projectiles . | . . . . Explosions . | . . . . Melee . | . . . . Knockbacks . | . . . . Impact . | . . . . Kinetic . | . . . . Secondary . | . . . . Self-Inflicted Damage . | . . . . Shots . | . . . . Rammed . | . . . . Targets Rammed . | . . . . Kicked . | . . . . Crushed . | . . . . Highest Temperature 453 | 27 9 453 275 Average Temperature 142 | 9 6 174 118 Received Heat Transfer 558 | . . 102 456 Effects 3 | . . 3 . Energy Bleed 2 | . . 2 . Damage (minor) 1 | . . 1 . Siege Activations . | . . . . Martial Activations . | . . . . Shielding Activations . | . . . . Robots Disrupted . | . . . . Combat Hostiles . | . . . . Robots Corrupted . | . . . . Combat Hostiles . | . . . . Parts Fried . | . . . . Impact Corruptions . | . . . . Robots Melted . | . . . . Combat Hostiles . | . . . . Parts Melted 4 | . . 1 3 Heat Transferred 2146 | 222 37 851 1036 Parts Sabotaged . | . . . . Parts Stolen . | . . . . Parts Stripped . | . . . . Power Chain Reactions . | . . . . Alert | -11 -10 -10 -10 ------- Run | Yrd Mat Min Sub Maximum Alert Level . | . . . . Low Security (%) 100 | 100 100 100 . Level 1 . | . . . . Level 2 . | . . . . Level 3 . | . . . . Level 4 . | . . . . Level 5 . | . . . . High Security . | . . . . Max Security . | . . . . Peak Influence 93 | 5 15 93 . Initial . | . . . . Average 7 | . . 14 . Influence Increases 176 | 15 36 125 . Destroy 0b10 Robot/C 120 | . . 120 . Destroy 0b10 Robot/NC 30 | 15 10 5 . Destroy Leader 4 | . 4 . . Successful Hack 7 | . 7 . . Partial Spotted 15 | . 15 . . Influence Decreases 176 | 15 36 48 77 Entered New Map 41 | . . . 41 Time Decay 135 | 15 36 48 36 Squads Dispatched 1 | . 1 . . Investigation . | . . . . Extermination . | . . . . Reinforcement 1 | . 1 . . Assault . | . . . . Garrison . | . . . . Intercept . | . . . . Searches Triggered . | . . . . Construction Impeded . | . . . . Haulers Reinforced . | . . . . Active Scanning Responses . | . . . . Cargo Convoy Interrupts . | . . . . Stealth | -11 -10 -10 -10 --------- Run | Yrd Mat Min Sub Distress Signals . | . . . . Communications Jammed . | . . . . Distress Signals . | . . . . Times Spotted 16 | . 3 7 6 Peak Tracking Total 2 | . 1 2 2 Tactical Retreats 1 | . . 1 . Traps | -11 -10 -10 -10 ------- Run | Yrd Mat Min Sub Traps Triggered . | . . . . Indirectly . | . . . . Trap Hack Attempts . | . . . . Triggered . | . . . . Disarmed . | . . . . Reprogrammed . | . . . . Reused . | . . . . Traps Extracted . | . . . . Installed . | . . . . Triggered . | . . . . Machines | -11 -10 -10 -10 ---------- Run | Yrd Mat Min Sub Machines Disabled . | . . . . Max in Single Turn . | . . . . Machines Repaired . | . . . . Machines Dismantled . | . . . . Machines Sabotaged . | . . . . Overloaded Fab Kills . | . . . . Hacking | -11 -10 -10 -10 --------- Run | Yrd Mat Min Sub Machines Accessed 2 | . 1 . 1 Terminals 1 | . 1 . . Fabricators . | . . . . Repair Stations . | . . . . Recycling Units . | . . . . Scanalyzers . | . . . . Garrison Access . | . . . . Total Hacks 5 | . 2 . 3 Successful 4 | . 1 . 3 Failed 1 | . 1 . . Catastrophic . | . . . . Database Lockouts . | . . . . Manual . | . . . . Terminals 2 | . 2 . . Fabricators . | . . . . Repair Stations . | . . . . Recycling Units . | . . . . Scanalyzers . | . . . . Garrison Access . | . . . . Terminal Hacks 4 | . 1 . 3 Record 3 | . . . 3 Surveillance Status 1 | . 1 . . Fabricator Hacks . | . . . . Repair Station Hacks . | . . . . Recycling Unit Hacks . | . . . . Scanalyzer . | . . . . Garrison Access Hacks . | . . . . Unauthorized Hacks . | . . . . Terminals . | . . . . Fabricators . | . . . . Repair Stations . | . . . . Recycling Units . | . . . . Scanalyzers . | . . . . Garrison Access . | . . . . Data Cores Recovered . | . . . . Used . | . . . . Hacking Detections 1 | . 1 . . Full Trace Events . | . . . . Feedback Events . | . . . . Feedback Blocked . | . . . . Robot Schematics Acquired . | . . . . Robots Built . | . . . . Authchips . | . . . . Time . | . . . . Total Robot Build Rating . | . . . . Part Schematics Acquired . | . . . . Parts Built . | . . . . Authchips . | . . . . Time . | . . . . Total Part Build Rating . | . . . . Part Studies Acquired . | . . . . Parts Repaired . | . . . . Time . | . . . . Parts Recycled . | . . . . Recycled Matter . | . . . . Retrieved Matter . | . . . . Retrieved Components . | . . . . Parts Scanalyzed . | . . . . Part Schematics Acquired . | . . . . Parts Damaged . | . . . . Bothacking | -11 -10 -10 -10 ------------ Run | Yrd Mat Min Sub Used RIF Installer . | . . . . Robots Hacked . | . . . . Non-combat . | . . . . Combat . | . . . . Robot Hacks Applied . | . . . . Relay Couplers Released . | . . . . Fabnet Peak Effective % . | . . . . Robots Rewired . | . . . . Allies Hacked . | . . . . Hacks Repelled . | . . . . Allies | -11 -10 -10 -10 -------- Run | Yrd Mat Min Sub Total Allies . | . . . . Largest Group . | . . . . Highest-Rated Group . | . . . . Highest-Rated Ally . | . . . . Total Orders . | . . . . Ally Attacks . | . . . . Total Damage . | . . . . Kills . | . . . . Allies Corrupted . | . . . . Allies Melted . | . . . . Intel | -11 -10 -10 -10 ------- Run | Yrd Mat Min Sub Active Infowar (turns) 774 | 91 576 107 . Seismic 774 | 91 576 107 . Robot Analysis Total . | . . . . Derelict Logs Recovered . | . . . . Drone Launches . | . . . . Drone Recoveries . | . . . . Exploration | -11 -10 -10 -10 ------------- Run | Yrd Mat Min Sub Turns Passed 2428 | 188 576 649 1015 Spaces Moved 1695 | 143 591 187 774 Core 7 | 7 . . . Treads . | . . . . Legs . | . . . . Wheels 1688 | 136 591 187 774 Hover . | . . . . Flight . | . . . . Fastest Speed 50 | 50 80 80 80 Average Speed 90 | 98 87 80 93 Slowest Speed 150 | 150 100 80 110 Overloaded Moves . | . . . . Propulsion Burnouts . | . . . . Robots Hopped . | . . . . Potential Cave-ins . | . . . . Cave-ins Triggered . | . . . . Exploration Rate (%) 21 | 7 43 13 24 Regions Visited 3 Branch Regions 2 Pre-discovered Areas . | . . . . Known Exits Taken . | . . . . Unknown Exits Taken 3 | 1 1 1 . Scrap Searched . | . . . . Spaces Dug . | . . . . Terrain Destroyed . | . . . . Melee . | . . . . Projectile . | . . . . AOE . | . . . . Terrain Rammed . | . . . . Walls Destroyed . | . . . . Machines Disabled . | . . . . Actions | -11 -10 -10 -10 --------- Run | Yrd Mat Min Sub Total 2369 | 174 638 646 911 Wait 476 | . 9 438 29 Move 1692 | 142 590 186 774 Hop . | . . . . Pick Up 17 | 11 3 . 3 Fast Attach 17 | 7 6 1 3 Attach 8 | . 3 . 5 Detach 9 | . 5 . 4 Swap 12 | 1 . . 11 Drop 21 | 6 10 1 4 Fire 112 | 7 12 20 73 Melee . | . . . . Ram . | . . . . Kick . | . . . . Crush . | . . . . Escape Stasis . | . . . . Rewire . | . . . . Trap . | . . . . Miscellaneous 5 | . . . 5 Route ------- -11/Scrapyard -10/Materials -10/Mines -10/Subcaves (discovered 3 exits: Mat x2 / Rec) History --------- Turn | Location | Event 15 | -11/Scrapyard | Discovered new exit (range 16) 189 | -11/Scrapyard | Entered Materials 248 | -10/Materials | Discovered new exit (range 10) 314 | -10/Materials | Build established: Mutant 765 | -10/Materials | Entered Mines 869 | -10/Mines | Excavation squad dispatched 869 | -10/Mines | A large section of the Mines collapsed 1119 | -10/Mines | Excavation squad dispatched 1348 | -10/Mines | Discovered new exit (range 6) 1414 | -10/Mines | Entered Subcaves 1415 | -10/Subcaves | Approached by a straggling Scientist 1629 | -10/Subcaves | Lost 4 parts (2n2u) 1742 | -10/Subcaves | Visited Clippyterm 1744 | -10/Subcaves | Identified exit to Materials 1744 | -10/Subcaves | Identified exit to Recycling 2044 | -10/Subcaves | A swath of the cavern ceiling suddenly collapsed 2230 | -10/Subcaves | Build established: Subdweller-Mutant 2312 | -10/Subcaves | Shifting Twisted Machinery released Battle Cannon 2313 | -10/Subcaves | Shifting Twisted Machinery released Mak. Axe 2420 | -10/Subcaves | Core integrity fell below 50% 2424 | -10/Subcaves | Core integrity fell below 20% 2429 | -10/Subcaves | Destroyed by BF-KA4(R) with Subdweller Beam Cannon Last Messages --------------- 02186_ System corrupted: Matter fused (-5). 02263_ System corrupted: Heat flow error (+176). 02283_ System corrupted: Matter fused (-5). 02305_ System corrupted: Matter fused (-8). Battle Cannon falls loose from the Twisted Machinery. Mak. Axe falls loose from the Twisted Machinery. 02323_ System corrupted: Component data lost. 02354_ WKXPPHB4PMW8:ABED US#YB 02401_ Wheel destroyed. 02407_ Critical hit (Meltdown: +300). 02411_ Scrap Shield destroyed. 02414_ Sub. Laser melted. 02414_ Sub. Optics melted. 02414_ Sub. Power Source melted. 02414_ 7V-NX1(R) destroyed. 02416_ Subatomizers dissect the Disposable Heat Sink. 02425_ Beam Cannon destroyed. 02429_ Wheel destroyed. Map ----- +----------------------------------------------------+ | #### #???# # ####?? | | ##??#### ##???## # # | | "#####??????#####?????## # | | "#?????????????????????## ###### ### | | ######??????????????????????########## #????? | | ???????????????????????????????# # # # #????? | | ??????????????????????????????## #????? | | ??????????????????????????????# ##### ## #????? | | ?????????????????????????????## #???# #????? | | ??????????????????????????##?# #???## ##????? | | ?????????????????????????## ### ##????### #?????? | | ?????????????????????????# ## #???????? #????? | | ???????????????????????????# " #???????? ##????? | | ???????????????????????##### ##???????? ?????? | | ???????????????????????# " ]"" ###?????? #????? | | ???????????????????????# "/ """#?????? #????? | | ???????????????????????## "" """ #??????##????? | | ???????????????????????# " ##"## """#????????????? | | ???????????????????????# "###?# ""#????????????? | | ???????????????????????##" ###""# ""?????????????? | | ???????????????????????##= """" """ ????????????? | | ???????????????????????#"%R"""" """ ????????????? | | ?????????????????????###"! "#""# "???????????????? | | ????????????????????## "" #####?????????????????? | | ????????????????????# "" ###???????????????????? | | ????????????????????##"" @ #???????????????????? | | ?????????????????????## """ "???????????????? | | ??????????????????????# ;##"" # "???????????????? | | ??????????????????????#####?####?????????????????? | | ?????????????????????????????????????????????????? | | ?????????????????????????????????????????????????? | | ?????????????????????????????????????????????????? | | ?????????????????????????????????????????????????? | | ?????????????????????????????????????????????????? | | ?????????????????????????????????????????????????? | | ?????????????????????????????????????????????????? | | ?????????????????????????????????????????????????? | | ?????????????????????????????????????????????????? | | ?????????????????????????????????????????????????? | | ?????????????????????????????????????????????????? | | ?????????????????????????????????????????????????? | | ?????????????????????????????????????????????????? | | ?????????????????????????????????????????????????? | | ?????????????????????????????????????????????????? | | ?????????????????????????????????????????????????? | | ?????????????????????????????????????????????????? | | ?????????????????????????????????????????????????? | | ?????????????????????????????????????????????????? | | ?????????????????????????????????????????????????? | | ?????????????????????????????????????????????????? | +----------------------------------------------------+ Best States ------------- Heat Dissipation 25 Energy Generation 15 Energy Capacity 250 Matter Stores 300 Matter Capacity 300 Sight Range 16 Terrain Scan Density 10 Armor Coverage 800 Weapon Shielding 33 Evasion (%) 44 Item Schematics ----------------- None Robot Schematics ------------------ None Fabricated ------------ Nothing Repaired ---------- Nothing Studied --------- None Alien Tech Used ----------------- None Achievements -------------- Survival Of The Most Covered Challenges ------------ None Game ------ Seed BeamDisruptorBooster Manual? 0 Play Time 00:25:47 Cumulative 12.9 hours Start 2026.01.04 @ 03:13:25 End 2026.01.04 @ 03:37:28 Sessions 1 Manual Loads 0 Difficulty Rogue Special Mode None Game No. 16 Rogue 16 Adventurer 0 Explorer 0 Win Type - Total 0 Types 0/0/0/0/0/0/0/0/0/0 Lore% 16 Gallery% 13 Achievement% 15 Wizard Run 0 Options --------- Layout 1 ASCII 0 Keyboard 0 Movement Arrows Keybinds 0 Fullscreen 1 Font 24/Smallcaps Map View 50x40 Zoom Use 0% Tactical HUD 1 Map Filters NONE Filters NONE Steam 1 RUN: 0e58d310-cf69-420d-9358-28fa3fd8bd3c